bitfinex/quotes_ETHUSD_20250214
["timestamp","ask_amount","ask_price","bid_price","bid_amount"]
[1739569369738,4.19559,2743.1,2742.4,3.64635]
[1739569369923,4.19559,2743.1,2742.5,3.64626]
[1739569370293,4.19559,2743.1,2742.4,3.64633]
[1739569370294,0.55,2743.1,2742.4,3.64633]
[1739569370502,0.55,2742.9,2742.4,3.64633]
[1739569370733,1.0847,2743.4,2742.2,3.64661]
[1739569370734,0.55,2743.3,2742.2,3.64661]
[1739569370931,3.7897,2743.4,2742.1,4.46532]
[1739569370932,0.55,2742.7,2742.1,4.46532]
[1739569371137,1.3397,2742.7,2741.9,3.64697]
[1739569371373,3.64625,2742.6,2742.0,3.64689]
[1739569371679,1.3397,2742.7,2742.1,3.64681]
[1739569371848,1.3397,2742.7,2742.2,3.64659]
[1739569372051,1.3397,2742.7,2742.1,3.64681]
[1739569372360,3.64617,2742.6,2742.1,3.64681]
[1739569373375,1.3397,2742.7,2742.1,3.64681]
[1739569373576,4.98577,2742.7,2742.1,3.64673]
[1739569374278,1.51908976,2742.7,2742.2,3.6466]
[1739569375363,5.16513976,2742.7,2742.1,3.64673]
[1739569376183,4.41424,2743.1,2742.3,3.64647]
[1739569376331,0.18140117,2742.9,2742.3,3.64647]
[1739569376675,0.55,2742.8,2742.3,3.64647]
[1739569377034,0.55,2742.8,2742.4,3.64636]
[1739569377237,1.0617,2743.1,2742.6,3.64606]
[1739569377238,0.7687,2743.1,2742.6,3.64606]
[1739569377678,0.55,2743.0,2742.6,7.29212]
[1739569378597,0.55,2743.0,2742.6,3.64606]
[1739569379594,0.55,2743.0,2742.6,7.29214]
[1739569380961,0.55,2743.0,2742.7,3.64593]
[1739569381164,3.64533,2743.3,2742.8,3.64584]
[1739569381362,3.64533,2743.3,2742.6,3.64608]
[1739569381593,0.55,2743.0,2742.6,3.64608]
[1739569381897,3.64568,2743.0,2742.6,3.64608]
[1739569382059,3.64583,2742.9,2742.4,7.29272]
[1739569382260,0.55,2742.9,2742.5,3.64621]
[1739569382586,0.55,2742.9,2742.6,3.64616]
[1739569383598,4.19552,2743.1,2742.6,3.64616]
[1739569384401,0.55,2742.9,2742.5,3.64629]
[1739569384602,4.19591,2742.8,2742.2,4.4139]
[1739569384770,0.55,2742.6,2742.2,3.64663]
[1739569385283,3.64611,2742.7,2742.2,3.64663]
[1739569385284,0.55,2742.7,2742.2,3.64663]
[1739569385666,4.19612,2742.7,2742.2,3.64662]
[1739569385998,3.64624,2742.6,2742.1,3.64672]
[1739569386180,3.64624,2742.6,2742.2,3.64669]
[1739569386382,0.55,2742.4,2742.1,3.64684]
[1739569386582,0.55,2742.4,2742.2,3.6467]
[1739569387410,0.55,2742.6,2742.2,7.29334]
[1739569388997,4.19628,2742.6,2742.1,3.64679]
[1739569389197,0.55,2742.4,2742.1,3.64679]
[1739569389540,0.55,2742.4,2742.2,3.6467]
[1739569389700,3.64618,2742.6,2742.2,3.6467]
[1739569389701,0.55,2742.6,2742.2,3.6467]
[1739569390202,4.19624,2742.6,2742.1,3.64679]
[1739569390497,0.55,2742.6,2742.1,3.64676]
[1739569390706,0.55,2742.6,2742.2,3.64662]
[1739569391403,8.4046,2743.2,2742.2,0.729338]
[1739569391604,3.64564,2743.1,2742.6,3.64608]
[1739569391906,5.39,2743.2,2742.5,0.7735]
[1739569392120,0.8256,2743.6,2742.6,3.10572836]
[1739569392264,0.18573038,2743.7,2743.3,3.64523]
[1739569392667,3.6446,2743.8,2743.3,7.29039]
[1739569392894,4.47014,2743.9,2742.9,0.02640102]
[1739569392895,0.55,2743.7,2743.1,3.64542]
[1739569393067,0.55,2743.7,2743.2,3.64536]
[1739569393903,0.55,2743.6,2743.1,3.64539]
[1739569394084,4.47014,2743.9,2743.3,3.64522]
[1739569394310,0.55,2743.7,2743.1,3.64539]
[1739569394612,4.47014,2743.9,2742.9,0.7735]
[1739569394781,4.47014,2743.9,2743.4,3.64508]
[1739569394983,4.47014,2743.9,2743.3,3.64521]
[1739569394984,4.19467,2743.8,2743.3,3.64521]
[1739569395179,4.19467,2743.8,2743.2,3.64532]
[1739569395379,4.19467,2743.8,2743.2,3.6453]
[1739569395614,3.64474,2743.7,2743.2,3.6453]
[1739569395811,0.55,2743.3,2742.6,0.7735]
[1739569396020,0.55,2743.2,2742.8,3.64587]
[1739569396621,4.19541,2743.2,2742.7,3.64602]
[1739569396913,4.19541,2743.2,2742.6,3.64608]
[1739569396914,0.55,2743.1,2742.6,3.64608]
[1739569397077,0.55,2742.7,2742.0,3.64686]
[1739569397425,1.3756,2742.5,2742.0,3.64686]
[1739569397980,5.02192,2742.5,2742.0,3.64686]
[1739569398215,1.3756,2742.5,2742.1,3.64679]
[1739569398517,0.55,2742.7,2742.3,3.64653]
[1739569398715,0.55,2742.7,2741.9,0.79993303]
[1739569398879,0.55,2742.7,2742.1,3.64674]
[1739569398880,3.64618,2742.6,2742.1,3.64674]
[1739569400527,3.64618,2742.6,2742.1,3.64676]
[1739569401922,0.55,2742.4,2741.9,7.29405]
[1739569402282,0.55,2742.4,2741.9,3.647]
[1739569402489,0.55,2742.4,2742.0,3.64696]
[1739569403744,0.55,2742.4,2741.9,3.647]
[1739569404037,4.1965,2742.4,2741.9,7.29403]
[1739569404188,4.1965,2742.4,2742.1,0.3]
[1739569404944,0.55,2742.4,2742.1,0.3]
[1739569405233,0.55,2742.4,2742.1,3.94677]
[1739569405586,0.55,2742.4,2742.1,3.94676]
[1739569407221,1.00904243,2742.8,2742.1,3.94673]
[1739569407439,4.65501243,2742.8,2742.4,3.64643]
[1739569407619,0.55,2742.7,2742.4,3.64643]
[1739569408408,4.19612,2742.7,2742.2,3.64662]
[1739569408607,4.19612,2742.7,2742.3,3.64656]
[1739569410029,0.55,2742.7,2742.4,3.64641]
[1739569410405,0.55,2742.7,2742.2,3.64659]
[1739569410758,0.55,2742.5,2742.2,3.64669]
[1739569411110,0.55,2742.5,2742.1,7.59345]
[1739569411306,4.19631,2742.5,2742.1,3.94672]
[1739569411724,0.55,2742.5,2742.2,3.64668]
[1739569411938,0.55,2742.5,2742.1,7.59347]
[1739569412146,0.55,2742.5,2742.1,3.94672]
[1739569412447,0.55,2742.3,2742.1,3.94672]
[1739569412649,3.64631,2742.5,2742.1,3.94672]
[1739569412802,0.55,2742.4,2742.1,3.94672]
[1739569414247,4.19644,2742.4,2742.1,0.3]
[1739569414426,0.55,2742.4,2742.1,0.3]
[1739569414616,0.55,2742.4,2742.1,3.94683]
[1739569416427,0.55,2742.6,2742.1,3.94683]
[1739569416627,4.19623,2742.6,2742.1,3.94683]
[1739569417052,0.55,2742.6,2742.2,3.64661]
[1739569417251,4.1962,2742.6,2742.2,3.64661]
[1739569417410,3.6463,2742.5,2742.1,3.94682]
[1739569418416,3.6463,2742.5,2742.1,0.3]
[1739569418928,0.55,2742.3,2742.1,0.3]
[1739569421860,0.55,2742.5,2742.1,0.3]
[1739569422046,0.55,2742.5,2742.1,3.94676]
[1739569423052,4.1963,2742.5,2742.1,3.94676]
[1739569424562,4.1963,2742.5,2742.1,0.3]
[1739569426244,3.64646,2742.4,2742.1,0.3]
[1739569426864,0.55,2742.6,2742.1,0.3]
[1739569427029,0.55,2742.4,2742.1,0.3]
[1739569427422,3.6463,2742.5,2742.1,0.3]
[1739569427622,4.1967,2742.2,2742.1,0.3]
[1739569427860,9.51061104,2742.2,2742.1,0.3]
[1739569428064,9.46501912,2742.2,2742.1,0.3]
[1739569428869,12.46501912,2742.2,2742.1,0.3]
[1739569429031,0.55,2741.4,2740.9,3.64843]
[1739569429541,4.19784,2741.4,2740.9,3.64843]
[1739569429863,0.55,2741.6,2741.1,3.64815]
[1739569430063,0.8026,2742.0,2741.2,0.46682194]
[1739569430264,5.777,2742.3,2741.3,0.7554]
[1739569430471,3.64676,2742.2,2741.7,3.64727]
[1739569431266,3.64698,2742.0,2741.5,7.29505]
[1739569431483,1.0876,2742.4,2741.6,1.484905]
[1739569431484,3.64652,2742.4,2741.6,1.484905]
[1739569431689,3.64652,2742.4,2741.8,3.64713]
[1739569431690,3.64658,2742.3,2741.8,3.64713]
[1739569432039,0.55,2742.2,2741.8,3.64713]
[1739569432236,0.55,2742.2,2741.7,3.64737]
[1739569432486,4.1967,2742.2,2741.7,3.64737]
[1739569432788,4.1967,2742.2,2741.7,7.29467]
[1739569433334,4.1967,2742.2,2741.8,3.64723]
[1739569433791,0.55,2742.2,2741.8,3.64723]
[1739569438477,4.19682,2742.2,2741.7,3.64737]
[1739569439584,2.9399,2742.3,2741.3,3.64781]
[1739569439777,0.55,2741.8,2741.3,3.64778]
[1739569440276,0.55,2741.8,2741.0,3.64824]
[1739569440277,0.55,2741.6,2741.0,3.64823]
[1739569440573,0.55,2741.6,2741.1,3.64811]
[1739569441370,4.19756,2741.6,2741.1,3.64811]
[1739569441581,0.55,2741.6,2741.0,3.64823]
[1739569441874,0.55,2741.6,2741.2,3.64803]
[1739569442115,0.7509,2742.0,2741.3,0.02645642]
[1739569442276,4.44647,2742.3,2741.6,3.64741]
[1739569442450,0.7998,2742.3,2741.8,3.64713]
[1739569442644,0.7998,2742.3,2741.9,3.64705]
[1739569442977,3.64648,2742.4,2741.9,3.64705]
[1739569443651,0.7998,2742.6,2742.0,3.67341016]
[1739569443851,0.71602056,2742.9,2742.2,3.64668]
[1739569443852,3.64587,2742.9,2742.2,3.64668]
[1739569444056,3.64587,2742.9,2742.3,3.6465]
[1739569444272,0.55,2742.8,2742.3,3.6465]
[1739569444440,0.55,2742.6,2741.9,0.729418]
[1739569444649,0.55,2742.6,2741.8,0.8209]
[1739569444650,0.55,2742.2,2741.8,0.8209]
[1739569444967,0.55,2742.2,2741.8,4.46813]
[1739569445380,4.19684,2742.1,2741.4,4.46856]
[1739569445675,0.55,2741.9,2741.5,3.64762]
[1739569445897,0.55,2742.0,2741.5,3.64754]
[1739569446275,0.55,2742.1,2741.5,3.64754]
[1739569446608,0.55,2742.1,2741.5,3.67398871]
[1739569446813,4.44617,2742.5,2741.8,3.64721]
[1739569447010,8.09257,2742.5,2742.0,3.64694]
[1739569447213,4.19644,2742.4,2741.8,3.64714]
[1739569447711,4.19644,2742.4,2741.8,7.29428]
[1739569447899,4.19644,2742.4,2741.9,3.6471]
[1739569448099,0.55,2742.5,2742.0,3.64688]
[1739569448296,0.55,2742.5,2742.1,3.64677]
[1739569448513,0.55,2742.5,2742.2,3.67307486]
[1739569448903,3.93112,2742.7,2742.2,3.64664]
[1739569449101,4.19629,2742.6,2742.1,3.64677]
[1739569449269,0.55,2742.6,2742.1,3.64676]
[1739569449469,0.55,2742.6,2742.2,3.64669]
[1739569450278,0.55,2742.6,2742.1,3.64676]
[1739569450279,0.55,2742.6,2742.3,3.67290425]
[1739569450703,0.55,2742.6,2742.3,3.64648]
[1739569451215,0.8156,2742.8,2742.3,3.64648]
[1739569451368,10.23806,2743.2,2742.4,0.02642426]
[1739569451573,0.8156,2743.5,2742.9,3.64568]
[1739569451806,0.8156,2743.5,2743.0,3.64563]
[1739569452125,4.46021,2743.8,2743.2,3.64534]
[1739569452276,3.64471,2743.7,2743.0,3.64557]
[1739569453004,0.55,2743.4,2743.0,3.64555]
[1739569453528,0.55,2743.6,2743.0,3.64555]
[1739569453735,0.55,2743.6,2743.2,3.64535]
[1739569453882,4.19493,2743.6,2743.0,3.64555]
[1739569454492,4.19493,2743.6,2743.0,7.29112]
[1739569454697,0.55,2743.6,2743.1,3.64543]
[1739569454915,4.19485,2743.6,2743.1,3.64543]
[1739569455216,0.55,2743.6,2743.2,3.67175824]
[1739569455418,0.8156,2743.8,2743.2,3.67175824]
[1739569455419,3.64458,2743.8,2743.3,3.64523]
[1739569455622,3.64451,2743.9,2743.4,3.64508]
[1739569455914,0.55,2743.8,2743.2,3.64528]
[1739569456112,0.55,2743.8,2743.0,3.64559]
[1739569456113,0.55,2743.6,2743.0,3.64556]
[1739569456319,3.64454,2743.9,2743.3,3.64516]
[1739569456622,0.55,2743.8,2743.4,3.64509]
[1739569456807,0.55,2743.8,2743.3,3.64516]
[1739569457314,0.55,2743.8,2743.3,7.29033]
[1739569458119,0.55,2743.8,2743.3,3.64516]
[1739569458418,0.55,2743.8,2743.4,3.64509]
[1739569458921,4.19466,2743.8,2743.3,3.64516]
[1739569459483,6.5916,2744.1,2743.1,3.64542]
[1739569459484,0.55,2743.5,2743.1,3.64542]
[1739569460323,4.19507,2743.5,2742.9,7.29141]
[1739569460637,0.55,2743.5,2742.9,3.64568]
[1739569460786,4.19505,2743.5,2742.9,4.087698]
[1739569460989,4.19471,2743.7,2742.9,0.442018]
[1739569461291,4.19471,2743.7,2743.2,3.64533]
[1739569461694,4.19471,2743.7,2743.2,3.64531]
[1739569462342,0.55,2743.5,2742.8,0.7745]
[1739569462543,0.55,2743.3,2742.8,0.7745]
[1739569462750,0.55,2743.3,2742.9,3.64576]
[1739569464545,0.55,2743.3,2742.9,7.29146]
[1739569464846,4.19527,2743.3,2742.9,3.6457]
[1739569465031,3.64539,2743.2,2742.7,3.64593]
[1739569465609,0.55,2742.8,2742.4,3.64644]
[1739569465998,0.55,2742.8,2742.2,4.4335]
[1739569466201,0.55,2742.8,2742.4,3.64637]
[1739569467156,0.55,2742.8,2742.5,3.64622]
[1739569468593,0.55,2742.8,2742.2,0.7869]
[1739569468729,3.64592,2742.8,2742.3,7.29304]
[1739569468921,0.55,2742.7,2742.3,3.6465]
[1739569469381,3.64633,2742.5,2741.9,4.43392]
[1739569469674,3.64597,2742.8,2742.2,3.64661]
[1739569469820,0.8064,2742.9,2742.0,3.64697]
[1739569469821,0.55,2742.5,2742.0,3.64697]
[1739569470437,0.8064,2742.9,2741.7,3.07931912]
[1739569470643,3.64608,2742.7,2742.2,3.6467]
[1739569470823,0.55,2742.5,2742.1,3.6468]
[1739569471266,4.19604,2742.7,2742.2,3.64663]
[1739569471838,8.09816,2742.9,2742.3,3.64655]
[1739569472043,3.64598,2742.8,2742.3,3.64655]
[1739569472318,0.55,2742.7,2742.3,3.64655]
[1739569472621,4.45226,2742.9,2742.4,3.64635]
[1739569472821,0.55,2742.8,2742.4,7.29272]
[1739569472987,0.55,2742.8,2742.4,3.64635]
[1739569473184,0.55,2742.8,2742.5,3.64629]
[1739569473423,0.55,2742.8,2742.4,7.29271]
[1739569473820,0.55,2742.8,2742.4,3.64635]
[1739569474117,0.55,2742.8,2742.5,3.6463]
[1739569474322,0.55,2742.8,2742.6,3.64615]
[1739569474619,0.55,2743.1,2742.6,3.64615]
[1739569474824,0.55,2743.1,2742.8,3.64586]
[1739569474975,0.8064,2743.2,2742.8,3.64586]
[1739569475175,4.45179,2743.2,2742.8,3.64586]
[1739569475376,0.55,2743.1,2742.8,3.64586]
[1739569475705,0.55,2743.1,2742.6,3.64604]
[1739569475877,4.19557,2743.1,2742.6,3.64604]
[1739569476530,4.19557,2743.1,2742.7,3.64602]
[1739569477340,0.55,2743.1,2742.7,3.64602]
[1739569477894,0.55,2743.1,2742.8,3.64583]
[1739569478440,0.55,2743.1,2742.5,3.64627]
[1739569478441,3.64563,2743.1,2742.5,3.64627]
[1739569478944,3.5589,2743.0,2742.2,3.64662]
[1739569479247,3.64613,2742.7,2742.2,3.64663]
[1739569479394,6.3848,2742.9,2742.2,3.64662]
[1739569479769,3.64597,2742.8,2742.4,3.6464]
[1739569481394,2.739,2742.9,2742.4,3.64635]
[1739569481742,6.38485,2742.9,2742.4,3.64635]
[1739569481942,2.739,2742.9,2742.4,3.64635]
[1739569482107,2.739,2742.9,2742.5,3.64618]
[1739569482530,6.38478,2742.9,2742.5,3.64618]
[1739569483144,6.38478,2742.9,2742.2,3.6466]
[1739569483449,3.64595,2742.8,2742.3,3.64651]
[1739569484607,6.38478,2742.9,2742.2,3.6466]
[1739569484813,0.55,2742.7,2742.3,3.64656]
[1739569486550,0.55,2742.6,2742.2,3.64658]
[1739569486949,0.55,2742.6,2742.3,3.6465]
[1739569487847,0.55,2742.6,2742.1,3.64681]
[1739569487848,4.19626,2742.6,2742.1,3.64674]
[1739569488059,3.64657,2742.3,2741.7,3.64737]
[1739569488331,0.55,2742.2,2741.8,3.6472]
[1739569488735,0.55,2742.0,2741.6,3.64745]
[1739569489337,3.64719,2741.9,2741.4,3.64773]
[1739569489504,5.01718,2741.8,2741.3,3.64785]
[1739569490518,5.01718,2741.8,2741.3,3.6478]
[1739569490828,0.55,2741.7,2741.2,3.64794]
[1739569491042,0.55,2741.7,2741.3,3.64779]
[1739569491720,0.55,2741.7,2741.4,3.64774]
[1739569492220,4.4668,2742.1,2741.6,3.64741]
[1739569492440,0.55,2742.0,2741.6,3.64741]
[1739569492820,4.19698,2742.0,2741.3,3.6478]
[1739569493051,7.84402,2742.0,2741.4,3.6477]
[1739569493253,4.19698,2742.0,2741.5,3.64762]
[1739569493432,0.55,2741.7,2741.3,3.64782]
[1739569493640,0.55,2741.7,2741.1,3.64808]
[1739569493817,0.55,2741.5,2741.1,7.29617]
[1739569494326,0.55,2741.5,2741.1,3.64808]
[1739569495119,1.3788,2741.5,2741.1,3.64808]
[1739569495313,1.3788,2741.5,2740.9,3.64833]
[1739569495544,1.3788,2741.5,2740.6,3.0]
[1739569495545,1.42439676,2741.5,2740.6,4.4575]
[1739569495751,0.55,2741.1,2740.6,4.45746]
[1739569496479,0.55,2741.1,2740.7,3.64863]
[1739569496836,0.55,2741.1,2740.7,3.6487]
[1739569497520,4.19822,2741.1,2740.6,3.64876]
[1739569497937,4.19822,2741.1,2740.6,7.29752]
[1739569498265,4.19822,2741.1,2740.6,3.64876]
[1739569498473,0.55,2740.9,2740.5,3.64886]
[1739569498670,1.3788,2740.9,2740.4,3.64901]
[1739569498873,1.3788,2740.9,2740.6,3.64873]
[1739569499222,1.3788,2740.9,2740.4,3.6491]
[1739569499473,5.02731,2740.9,2740.4,3.6491]
[1739569499623,1.3788,2740.9,2740.5,3.6489]
[1739569500136,5.02736,2740.9,2740.1,3.64945]
[1739569500474,0.55,2740.8,2739.9,3.88801912]
[1739569500675,0.55,2740.8,2740.2,3.64934]
[1739569500976,4.19857,2740.8,2740.3,3.64914]
[1739569501121,0.55,2740.5,2740.1,3.64948]
[1739569501330,4.19903,2740.5,2740.0,7.2991]
[1739569501556,0.55,2740.5,2740.0,7.2991]
[1739569501751,4.19906,2740.5,2740.0,3.64954]
[1739569502168,3.64839,2741.0,2739.8,3.7986368]
[1739569502169,3.64938,2740.2,2739.8,3.7986368]
[1739569502413,0.55,2740.3,2739.8,3.7986368]
[1739569502618,0.55,2740.3,2739.9,3.64969]
[1739569502916,0.55,2740.1,2739.8,0.1488268]
[1739569503221,8.02856,2739.9,2739.8,6.8e-06]
[1739569503516,0.8288,2738.9,2738.3,1.61925457]
[1739569503673,3.65136,2738.7,2738.3,0.81055457]
[1739569503996,0.55,2738.6,2738.0,4.46096]
[1739569504295,0.59564519,2738.6,2737.9,3.65233]
[1739569504504,4.48072,2738.3,2737.7,3.65266]
[1739569505109,0.8288,2738.3,2737.5,3.91265245]
[1739569505305,0.285,2738.5,2738.0,3.65216]
[1739569505489,3.0,2738.9,2738.0,3.65216]
[1739569505490,0.8288,2738.9,2738.7,3.65136]
[1739569505693,0.285,2739.4,2738.5,3.65161]
[1739569505694,4.47952,2739.2,2738.5,3.65161]
[1739569505895,0.55,2739.1,2738.6,3.65146]
[1739569506269,0.55,2739.1,2738.8,3.65113]
[1739569506567,3.93555,2739.4,2738.8,3.65113]
[1739569506568,0.8288,2739.7,2739.3,3.65054]
[1739569506793,0.8288,2739.7,2739.4,3.67686804]
[1739569506981,1.1138,2740.0,2739.5,3.65029]
[1739569507180,1.1138,2740.0,2739.7,3.6499]
[1739569507521,0.55,2739.9,2739.6,3.65016]
[1739569507673,9.42814,2740.4,2739.7,3.65002]
[1739569507867,9.42814,2740.4,2739.8,3.64985]
[1739569507868,0.7617,2740.3,2739.8,3.64985]
[1739569508269,0.7617,2740.3,2739.4,3.65037]
[1739569508510,4.41206,2739.5,2738.9,3.65107]
[1739569508673,0.55,2739.4,2738.9,3.65107]
[1739569509300,0.55,2739.2,2738.5,4.46114]
[1739569509694,0.55,2739.2,2738.7,3.65128]
[1739569510072,0.55,2739.4,2738.7,3.65128]
[1739569510273,0.55,2739.3,2738.8,3.65122]
[1739569510501,3.6507,2739.2,2738.5,3.65159]
[1739569510702,3.6507,2739.2,2738.6,3.65148]
[1739569510879,4.20068,2739.3,2738.7,3.65126]
[1739569511086,4.20044,2739.4,2738.7,3.65126]
[1739569511268,0.55,2739.4,2738.2,0.8096]
[1739569511469,0.55,2739.4,2739.2,3.65066]
[1739569511705,0.55,2739.4,2739.0,3.65087]
[1739569511891,0.7617,2739.5,2739.2,3.65069]
[1739569512097,0.7617,2739.9,2739.4,3.65043]
[1739569512404,0.7617,2740.3,2739.5,0.8096]
[1739569512707,5.779,2740.4,2739.9,3.64968]
[1739569512931,5.779,2740.4,2740.0,3.64951]
[1739569513231,5.779,2740.4,2740.3,3.64923]
[1739569513574,0.7617,2741.4,2740.7,3.64858]
[1739569513967,3.64791,2741.3,2740.7,7.29717]
[1739569514167,3.64791,2741.3,2740.7,3.64858]
[1739569514406,3.64866,2740.8,2740.1,4.45907]
[1739569514582,0.55,2740.7,2740.2,3.64933]
[1739569515466,3.64866,2740.8,2739.9,3.64968]
[1739569515467,0.55,2740.5,2739.9,3.64968]
[1739569515709,0.55,2740.5,2739.9,3.64965]
[1739569516005,0.55,2740.5,2740.1,3.64948]
[1739569516168,3.64863,2740.8,2740.2,3.64927]
[1739569516169,0.55,2740.7,2740.2,3.64927]
[1739569516373,0.55,2740.7,2740.4,3.64904]
[1739569516606,0.55,2740.8,2740.4,3.64904]
[1739569517107,4.19857,2740.8,2740.2,3.64927]
[1739569517410,4.19857,2740.8,2740.2,7.29855]
[1739569517610,4.19857,2740.8,2740.3,3.64923]
[1739569517800,0.55,2740.8,2740.4,3.64899]
[1739569518118,0.7617,2740.9,2740.4,3.64898]
[1739569518405,0.7617,2740.9,2740.5,3.64894]
[1739569518609,0.55,2740.8,2740.6,3.64874]
[1739569518808,0.7617,2741.3,2740.6,0.364874]
[1739569518972,0.7617,2741.3,2741.0,3.64829]
[1739569519174,0.7617,2741.3,2740.9,3.6484]
[1739569519175,0.55,2741.2,2740.9,3.6484]
[1739569519396,4.19804,2741.2,2740.6,3.64875]
[1739569519624,0.55,2741.2,2740.8,3.64853]
[1739569519785,0.55,2741.2,2740.9,0.02647802]
[1739569519987,0.55,2741.2,2741.0,3.64822]
[1739569520284,0.55,2741.2,2741.0,7.29644]
[1739569520618,0.55,2741.2,2740.8,0.02647086]
[1739569520619,0.55,2741.2,2740.8,3.64854]
[1739569521873,0.55,2741.2,2740.9,3.6484]
[1739569522073,0.55,2741.2,2741.0,3.64829]
[1739569522276,0.55,2741.2,2740.8,3.64854]
[1739569522474,0.55,2741.2,2740.6,0.02647133]
[1739569522708,4.19806,2741.2,2740.7,3.64869]
[1739569523017,0.55,2741.2,2740.7,3.64869]
[1739569523211,0.55,2741.2,2740.9,3.64838]
[1739569523416,0.55,2741.2,2741.0,3.64828]
[1739569523599,0.55,2741.2,2740.8,3.67501234]
[1739569523600,0.55,2741.2,2740.2,3.0]
[1739569523802,0.55,2741.1,2740.6,3.6488]
[1739569523981,0.55,2741.1,2740.8,3.64846]
[1739569524390,0.7617,2741.3,2740.8,3.64846]
[1739569525019,0.8134,2741.8,2741.2,3.648]
[1739569525215,5.781,2741.9,2741.0,0.7726]
[1739569525519,5.781,2741.9,2741.6,3.6474]
[1739569525680,3.64705,2742.0,2741.4,3.6477]
[1739569525875,1.90566149,2743.2,2742.5,3.6463]
[1739569526317,0.8134,2743.3,2742.5,4.4189]
[1739569526480,0.8134,2743.3,2742.5,4.44530916]
[1739569526680,4.45867,2743.3,2742.5,0.7726]
[1739569526911,3.64561,2743.1,2742.4,3.64642]
[1739569527636,0.55,2742.5,2742.2,3.64665]
[1739569527775,0.55,2742.5,2742.4,3.64644]
[1739569527981,0.55,2742.5,2742.2,7.29326]
[1739569528276,0.55,2742.5,2742.3,3.64655]
[1739569528496,0.55,2742.5,2742.2,3.67303464]
[1739569528777,0.55,2742.5,2742.2,3.64661]
[1739569528989,0.55,2742.5,2742.1,0.7726]
[1739569529216,0.55,2742.5,2742.0,3.64694]
[1739569529428,0.55,2742.3,2741.6,3.64749]
[1739569529591,0.55,2742.3,2741.2,0.7726]
[1739569529781,0.55,2742.3,2741.7,3.64725]
[1739569529983,0.55,2742.3,2741.7,3.67369391]
[1739569530178,0.55,2742.3,2741.9,3.64707]
[1739569530379,0.55,2742.3,2742.0,3.64689]
[1739569531031,0.55,2742.3,2741.8,3.64713]
[1739569531187,0.55,2742.3,2741.7,3.64733]
[1739569531734,4.19661,2742.3,2741.7,3.64733]
[1739569532596,0.55,2742.1,2741.6,3.64745]
[1739569532925,4.19687,2742.1,2741.5,3.64759]
[1739569533702,4.45991,2742.4,2741.7,3.64725]
[1739569533891,0.8134,2742.4,2742.0,3.64693]
[1739569534090,0.8134,2742.4,2741.8,3.64716]
[1739569534301,0.55,2742.3,2741.8,7.29432]
[1739569534709,0.55,2742.3,2741.9,3.64707]
[1739569535438,0.55,2742.3,2741.8,7.2944]
[1739569535595,0.55,2742.3,2741.9,3.64703]
[1739569535944,4.19658,2742.3,2741.8,3.6472]
[1739569538535,0.8033,2742.4,2741.4,4.64563649]
[1739569538692,0.55,2742.3,2742.0,3.64689]
[1739569539318,0.55,2742.3,2741.8,3.64719]
[1739569539525,0.55,2742.3,2741.4,4.64563649]
[1739569539526,0.55,2742.1,2741.6,3.64742]
[1739569539707,0.55,2741.9,2741.4,3.64768]
[1739569540035,1.3533,2741.9,2741.4,3.64768]
[1739569540333,1.3533,2741.9,2741.3,3.6479]
[1739569540334,0.55,2741.7,2741.3,3.6479]
[1739569540497,4.19738,2741.7,2741.2,3.64797]
[1739569540835,0.55,2741.7,2741.3,3.64788]
[1739569541204,3.64776,2741.5,2740.9,3.64833]
[1739569541404,0.8033,2741.9,2740.9,3.64833]
[1739569541405,0.55,2741.3,2740.9,3.64833]
[1739569541610,0.55,2741.5,2740.9,3.64833]
[1739569541827,0.8033,2741.9,2741.0,3.67474719]
[1739569542126,3.64652,2742.4,2741.8,3.64713]
[1739569542335,3.64672,2742.2,2741.8,3.64713]
[1739569542507,0.55,2742.1,2741.6,7.29486]
[1739569542694,0.55,2742.1,2741.6,3.64743]
[1739569543053,0.55,2742.1,2741.7,3.64735]
[1739569543345,0.55,2742.3,2741.7,3.64735]
[1739569543557,0.55,2742.3,2741.5,3.64754]
[1739569543717,3.6467,2742.2,2741.7,3.6473]
[1739569543911,0.55,2741.9,2741.5,3.64754]
[1739569544715,0.55,2741.6,2741.1,3.64805]
[1739569544914,0.55,2741.6,2741.2,3.64803]
[1739569545130,0.55,2741.6,2741.1,3.64805]
[1739569545710,4.19751,2741.6,2741.1,3.64805]
[1739569546421,0.7791,2742.0,2740.8,7.23438249]
[1739569546422,0.55,2741.7,2740.8,7.23438249]
[1739569546740,3.64746,2741.7,2741.2,3.64797]
[1739569547044,0.55,2741.6,2741.2,3.64793]
[1739569547241,0.55,2741.6,2740.9,1.16587425]
[1739569547242,0.55,2741.8,2741.0,3.6483]
[1739569547545,0.7791,2742.0,2741.3,3.64777]
[1739569547753,3.6469,2742.1,2741.6,3.64748]
[1739569548044,3.6469,2742.1,2741.5,0.7757]